[Event "46th GRE-chT Premier 2018"]
[Site "Rio Achaia"]
[Date "2018.07.11"]
[Round "3"]
[White "Hadzimanolis, Antonios"]
[Black "Milonakis, Georgios"]
[Result "0-1"]
[ECO "C99"]
[WhiteElo "2246"]
[BlackElo "2200"]
[Annotator "NA"]
[PlyCount "114"]
[EventDate "2018.07.10"]
[EventType "team-tourn"]
[EventCountry "GRE"]
[SourceTitle "playchess.com"]
[Source "ChessBase"]
[SourceQuality "1"]
[TimeControl "40/5400+30:1800+30"]

1. e4 {[%emt 0:00:00]} e5 {[%emt 0:00:00]} 2. Nf3 {[%emt 0:00:00]} Nc6 {[%emt 0:00:07]} 3. Bb5 {[%emt 0:00:00]} a6 {[%emt 0:00:21]} 4. Ba4 {[%emt 0:00:05]} Nf6 {[%emt 0:00:18]} 5. O-O {[%emt 0:00:10]} Be7 {[%emt 0:00:37]} 6. Re1 {[%emt 0:00:09]} b5 {[%emt 0:00:47]} 7. Bb3 {[%emt 0:00:04]} d6 {[%emt 0:00:23]} 8. c3 {[%emt 0:00:17]} O-O {[%emt 0:00:30]} 9. h3 {[%emt 0:00:05]} Na5 {[%emt 0:01:21]} 10. Bc2 {[%emt 0:00:07]} c5 {[%emt 0:00:15]} 11. d4 {[%emt 0:00:07]} Qc7 {[%emt 0:01:07]} 12. Nbd2 {[%emt 0:00:10]} cxd4 {[%emt 0:01:14]} 13. cxd4 {[%emt 0:00:04]} Nc6 {[%emt 0:00:16]} 14. a3 {[%emt 0:03:01]} exd4 {[%emt 0:03:39] C99: Spanische Partie (Tschigorin-System)} 15. Nb3 {[%emt 0:00:29]} d3 {[%emt 0:05:02]} (15... Bb7 16. Nbxd4 Nxd4 17. Nxd4 Rfe8 18. Bf4 Bf8 19. f3 Nh5 20. Bh2 g6 21. Bb3 Bg7 22. Kh1 {½-½ (33) Gashimov,V (2734)-Akopian,V (2694) Astrakhan 2010 CBM 137 [Marin,M]}) 16. Bxd3 {[%emt 0:02:23]} Ne5 {[%emt 0:00:40]} 17. Bb1 {[%emt 0:08:11]} Bb7 {[%emt 0:06:13]} 18. Bf4 {[%emt 0:14:40]} Nfd7 $146 {[%emt 0:04:37]} ({Vorgänger:} 18... Ng6 19. Bh2 Qb6 20. Qd4 Qxd4 21. Nfxd4 d5 22. e5 {1-0 (36) Havlikova,K (2079)-Miturova,M (1789) Sec u Chrudimi 2008}) 19. Ba2 {[%emt 0:19:09]} Rac8 {[%emt 0:10:48]} 20. Nbd4 {[%emt 0:11:23]} Nc5 {[%emt 0:05:58]} 21. Bh2 {[%emt 0:16:24]} g6 {[%emt 0:15:54]} 22. Bd5 {[%emt 0:05:46]} Ncd3 {[%emt 0:12:46]} 23. Nxe5 {[%emt 0:02:04]} Nxe5 {[%emt 0:05:25]} 24. a4 {[%emt 0:04:48]} Qb6 {[%emt 0:07:05]} 25. axb5 {[%emt 0:05:37]} axb5 {[%emt 0:00:14]} 26. Bxb7 {[%emt 0:02:17]} Qxb7 {[%emt 0:00:11]} 27. Ra5 {[%emt 0:00:18]} Rc5 {[%emt 0:06:00]} 28. b4 {[%emt 0:04:04]} Rc3 {[%emt 0:02:10]} 29. Nxb5 {[%emt 0:01:29]} Rd3 {[%emt 0:02:57]} 30. Qe2 {[%emt 0:00:14]} Rb3 {[%emt 0:02:10]} 31. Ra7 {[%emt 0:00:05]} Qb6 {[%emt 0:00:03]} 32. Rxe7 {[%emt 0:00:17]} Nd3 {[%emt 0:00:04]} 33. Nxd6 {[%emt 0:01:55]} Rb2 {[%emt 0:02:11]} 34. Nc4 {[%emt 0:00:36]} Rxe2 {[%emt 0:00:19]} 35. Rxe2 {[%emt 0:00:06]} Qxb4 {[%emt 0:00:12]} 36. Bd6 {[%emt 0:00:36]} Qxc4 {[%emt 0:00:44]} 37. Rc7 {[%emt 0:00:02]} Qb3 {[%emt 0:01:56]} 38. Bxf8 {[%emt 0:01:03]} Kxf8 {[%emt 0:00:48]} 39. Rd2 {[%emt 0:00:32]} Qb1+ {[%emt 0:00:50]} 40. Kh2 {[%emt 0:00:00]} Qb8 {[%emt 0:00:00]} 41. Rxd3 {[%emt 0:00:30]} Qxc7+ {[%emt 0:00:20]} 42. g3 {[%emt 0:03:45]} Qc2 {[%emt 0:00:32]} 43. Rf3 {[%emt 0:00:07]} Qxe4 {[%emt 0:00:15]} 44. Rf4 {[%emt 0:00:07]} Qd5 {[%emt 0:00:22]} 45. h4 {[%emt 0:00:12]} Ke7 {[%emt 0:02:49]} 46. Kg1 {[%emt 0:00:28]} Ke6 {[%emt 0:00:31]} 47. Kh2 {[%emt 0:00:22]} h6 {[%emt 0:00:34]} 48. Kg1 {[%emt 0:00:35]} f5 {[%emt 0:02:17]} 49. Rb4 {[%emt 0:00:21]} Qc6 {[%emt 0:00:54]} 50. Rd4 {[%emt 0:02:20]} Ke5 {[%emt 0:01:01]} 51. Rb4 {[%emt 0:00:42]} Qc5 {[%emt 0:02:05]} 52. Rb8 {[%emt 0:06:28]} f4 {[%emt 0:01:37]} 53. Rb3 {[%emt 0:04:13]} Qd5 {[%emt 0:01:28]} 54. gxf4+ {[%emt 0:04:04]} Kxf4 {[%emt 0:00:29]} 55. Rg3 {[%emt 0:00:05]} Qe4 {[%emt 0:07:44]} 56. Kh2 $19 {[%emt 0:11:47]} Kf5 {[%emt 0:02:30]} 57. Rh3 {[%emt 0:00:57]} Qg4 {[%emt 0:01:32]} 0-1

[Event "46th GRE-chT Premier 2018"]
[Site "Rio Achaia"]
[Date "2018.07.11"]
[Round "3"]
[White "Ergazakis, Ioannis"]
[Black "Kazakos, Markos"]
[Result "1-0"]
[ECO "B06"]
[WhiteElo "2228"]
[BlackElo "2051"]
[Annotator "NA"]
[PlyCount "55"]
[EventDate "2018.07.10"]
[EventType "team-tourn"]
[EventCountry "GRE"]
[SourceTitle "playchess.com"]
[Source "ChessBase"]
[SourceQuality "1"]
[TimeControl "40/5400+30:1800+30"]

1. e4 {[%emt 0:00:00]} g6 {[%emt 0:00:00]} 2. d4 {[%emt 0:00:00]} Bg7 {[%emt 0:00:03]} 3. Nc3 {[%emt 0:00:00]} d6 {[%emt 0:00:09]} 4. Be3 {[%emt 0:00:00]} a6 {[%emt 0:00:22]} 5. a4 {[%emt 0:00:11]} b6 {[%emt 0:00:59]} 6. h4 {[%emt 0:00:09]} h5 {[%emt 0:03:41]} 7. Nh3 {[%emt 0:00:35]} Bb7 {[%emt 0:01:31]} 8. f3 {[%emt 0:00:14]} Nd7 {[%emt 0:06:50]} 9. Ng5 {[%emt 0:03:12]} Ngf6 {[%emt 0:07:24]} 10. Qd2 {[%emt 0:00:50]} c5 {[%emt 0:02:02]} 11. Be2 {[%emt 0:04:24]} cxd4 {[%emt 0:07:35]} 12. Bxd4 {[%emt 0:00:23]} O-O {[%emt 0:06:13]} 13. O-O {[%emt 0:01:02]} Qc7 {[%emt 0:03:50]} 14. f4 {[%emt 0:09:39]} e5 {[%emt 0:08:55]} 15. Be3 {[%emt 0:00:28]} exf4 {[%emt 0:00:26]} 16. Rxf4 {[%emt 0:00:55]} Nh7 {[%emt 0:14:54]} 17. Nxh7 {[%emt 0:24:52]} Kxh7 {[%emt 0:00:10]} 18. Raf1 {[%emt 0:00:10]} Ne5 {[%emt 0:02:34]} 19. R4f2 {[%emt 0:01:47]} Rac8 {[%emt 0:10:29]} 20. Qd1 {[%emt 0:02:54]} Nc4 {[%emt 0:06:33]} 21. Bxc4 {[%emt 0:05:44]} Qxc4 {[%emt 0:00:10]} 22. Qxd6 {[%emt 0:04:02]} Qe6 {[%emt 0:06:01]} 23. Qxe6 {[%emt 0:00:57]} fxe6 {[%emt 0:00:06]} 24. Rf7 {[%emt 0:00:25]} Rxf7 {[%emt 0:01:04]} 25. Rxf7 {[%emt 0:00:07]} Bc6 {[%emt 0:01:01]} 26. Bd4 {[%emt 0:00:15]} Rg8 {[%emt 0:01:54]} 27. Rc7 {[%emt 0:01:10]} Ba8 {[%emt 0:00:47]} 28. Ra7 {[%emt 0:01:32]} 1-0

[Event "46th GRE-chT Premier 2018"]
[Site "Rio Achaia"]
[Date "2018.07.11"]
[Round "3"]
[White "Papadopoulos, Nikolaos"]
[Black "Klerides, Paris"]
[Result "1-0"]
[ECO "B90"]
[WhiteElo "2228"]
[BlackElo "2196"]
[Annotator "NA"]
[PlyCount "61"]
[EventDate "2018.07.10"]
[EventType "team-tourn"]
[EventCountry "GRE"]
[SourceTitle "playchess.com"]
[Source "ChessBase"]
[SourceQuality "1"]
[TimeControl "40/5400+30:1800+30"]

1. e4 {[%emt 0:00:34]} c5 {[%emt 0:00:10]} 2. Nf3 {[%emt 0:00:11]} d6 {[%emt 0:00:02]} 3. d4 {[%emt 0:00:57]} cxd4 {[%emt 0:00:04]} 4. Nxd4 {[%emt 0:00:10]} Nf6 {[%emt 0:00:03]} 5. Nc3 {[%emt 0:00:13]} a6 {[%emt 0:00:33]} 6. Nb3 {[%emt 0:02:53]} e6 {[%emt 0:06:37]} 7. g4 {[%emt 0:02:52]} b5 {[%emt 0:11:16]} 8. a3 {[%emt 0:16:05]} Bb7 {[%emt 0:00:58]} 9. Bg2 {[%emt 0:01:53]} Be7 {[%emt 0:03:20]} 10. g5 {[%emt 0:08:28]} Nfd7 {[%emt 0:00:08]} 11. f4 {[%emt 0:00:57]} Qb6 {[%emt 0:10:02]} 12. Qe2 {[%emt 0:01:27]} Nc5 {[%emt 0:04:50]} 13. Be3 {[%emt 0:05:10]} Nbd7 {[%emt 0:03:13]} 14. O-O {[%emt 0:09:09]} Qc7 {[%emt 0:04:46]} 15. f5 {[%emt 0:06:29]} e5 {[%emt 0:17:28]} 16. Nxc5 {[%emt 0:08:27]} dxc5 {[%emt 0:01:50]} 17. Nd5 {[%emt 0:15:53]} Bxd5 {[%emt 0:01:54]} 18. exd5 {[%emt 0:00:02]} Bd6 {[%emt 0:01:11]} 19. a4 {[%emt 0:02:05]} b4 {[%emt 0:06:04]} 20. Qh5 {[%emt 0:01:57]} a5 {[%emt 0:17:59]} 21. c3 {[%emt 0:01:33]} c4 {[%emt 0:01:37]} 22. Kh1 {[%emt 0:00:53]} Rb8 {[%emt 0:01:37]} 23. f6 {[%emt 0:04:58]} g6 {[%emt 0:01:27]} 24. Qh6 {[%emt 0:00:02]} Bf8 {[%emt 0:00:37]} 25. d6 {[%emt 0:00:51]} Qxd6 {[%emt 0:01:34]} 26. Qh3 {[%emt 0:02:26]} Nc5 {[%emt 0:01:05]} 27. Bxc5 {[%emt 0:03:29]} Qxc5 28. Rad1 {[%emt 0:00:22]} Rd8 {[%emt 0:02:45]} 29. Rxd8+ {[%emt 0:00:30]} Kxd8 {[%emt 0:00:01]} 30. Rd1+ {[%emt 0:00:11]} Bd6 {[%emt 0:00:38]} 31. Qf3 {[%emt 0:00:24]} 1-0

[Event "46th GRE-chT Premier 2018"]
[Site "Rio Achaia"]
[Date "2018.07.11"]
[Round "3"]
[White "Galunova, Tsveta"]
[Black "Richterova, Natasa"]
[Result "1-0"]
[ECO "D45"]
[WhiteElo "2204"]
[BlackElo "2146"]
[Annotator "NA"]
[PlyCount "107"]
[EventDate "2018.07.10"]
[EventType "team-tourn"]
[EventCountry "GRE"]
[SourceTitle "playchess.com"]
[Source "ChessBase"]
[SourceQuality "1"]
[TimeControl "40/5400+30:1800+30"]

1. d4 {[%emt 0:00:00]} d5 {[%emt 0:00:00]} 2. Nf3 {[%emt 0:00:00]} Nf6 {[%emt 0:00:10]} 3. c4 {[%emt 0:00:04]} c6 {[%emt 0:00:04]} 4. e3 {[%emt 0:01:46]} e6 {[%emt 0:05:17]} 5. Nc3 {[%emt 0:00:17]} Nbd7 {[%emt 0:00:04]} 6. Qc2 {[%emt 0:00:28]} Be7 {[%emt 0:00:06]} 7. Bd3 {[%emt 0:00:44]} O-O {[%emt 0:00:14]} 8. O-O {[%emt 0:00:29]} h6 {[%emt 0:01:18]} 9. b3 {[%emt 0:03:59]} b6 {[%emt 0:00:07]} 10. Bb2 {[%emt 0:02:43]} Bb7 {[%emt 0:00:26]} 11. Rac1 {[%emt 0:09:13]} Rc8 {[%emt 0:03:04]} 12. Rfd1 {[%emt 0:02:12]} Qc7 {[%emt 0:02:28]} 13. Qe2 {[%emt 0:02:36]} Qb8 {[%emt 0:05:46] D46: Semi-Slav: 5 e3 Nbd7 6 Bd3, Black avoids the Meran} 14. Bb1 {[%emt 0:07:01]} (14. Ne5 Rfd8 15. f4 dxc4 16. bxc4 c5 17. f5 Bd6 18. fxe6 fxe6 19. Ng4 Nxg4 20. Qxg4 Bxh2+ 21. Kh1 {½-½ (65) Bindrich,F (2594)-Dreev,A (2644) Berlin 2015}) 14... Rfd8 {[%emt 0:02:23]} 15. e4 {[%emt 0:07:51]} dxe4 {[%emt 0:00:18]} 16. Nxe4 {[%emt 0:00:16]} Nxe4 {[%emt 0:00:37]} 17. Qxe4 {[%emt 0:00:22]} Nf8 {[%emt 0:01:58]} 18. c5 $146 {[%emt 0:04:45]} ({Predecessor:} 18. Ne5 c5 19. d5 Bf6 20. Rd3 exd5 21. cxd5 {1-0 (33) Lien,K (2120)-Bjornes,L (1934) Helsingor 2017}) 18... Rd5 {[%emt 0:02:39]} 19. b4 {[%emt 0:06:29]} Rcd8 {[%emt 0:01:42]} 20. Re1 {[%emt 0:01:15]} Bf6 {[%emt 0:08:26]} 21. Ne5 {[%emt 0:03:46]} Bxe5 {[%emt 0:12:31]} 22. dxe5 {[%emt 0:00:12]} bxc5 {[%emt 0:02:16]} 23. Rxc5 {[%emt 0:06:10]} Rxc5 {[%emt 0:16:27]} 24. bxc5 {[%emt 0:00:05]} Ba6 {[%emt 0:01:02]} 25. Bc1 {[%emt 0:16:01]} Rd5 {[%emt 0:01:29]} 26. f4 {[%emt 0:09:56]} Rxc5 {[%emt 0:07:10]} 27. Be3 {[%emt 0:00:35]} Rc4 {[%emt 0:00:36]} 28. Qf3 {[%emt 0:01:00]} Qb4 {[%emt 0:02:59]} 29. Qf2 {[%emt 0:02:37]} Qa5 {[%emt 0:04:11]} 30. Rd1 {[%emt 0:04:22]} Ra4 {[%emt 0:11:22]} 31. Bxa7 {[%emt 0:04:23]} Bc4 {[%emt 0:00:47]} 32. Bb6 {[%emt 0:00:35]} Qb5 {[%emt 0:00:17]} 33. Bc5 {[%emt 0:01:10]} Bd5 {[%emt 0:00:51]} 34. Bd6 {[%emt 0:01:33]} Qc4 {[%emt 0:02:17]} 35. Rf1 {[%emt 0:00:39]} Qd4 {[%emt 0:01:51]} 36. g3 {[%emt 0:01:48]} Qxf2+ {[%emt 0:00:07]} 37. Rxf2 {[%emt 0:00:29]} g6 {[%emt 0:03:33]} 38. Rb2 {[%emt 0:00:10]} Kg7 {[%emt 0:00:54]} 39. Kf2 {[%emt 0:00:45]} Nh7 {[%emt 0:00:38]} 40. Ke3 {[%emt 0:00:00]} g5 {[%emt 0:00:00]} 41. a3 {[%emt 0:12:55]} gxf4+ {[%emt 0:03:22]} 42. gxf4 {[%emt 0:00:02]} Ra7 43. h4 {[%emt 0:02:59]} h5 {[%emt 0:04:04]} 44. Rb8 {[%emt 0:00:45]} Ra5 {[%emt 0:06:44]} 45. Bb4 {[%emt 0:03:35]} Ra7 {[%emt 0:00:10]} 46. Bc2 {[%emt 0:02:54]} c5 {[%emt 0:07:13]} 47. Bxc5 {[%emt 0:00:48]} Rc7 {[%emt 0:00:02]} 48. Kd4 {[%emt 0:02:27]} f6 {[%emt 0:00:13]} 49. Re8 {[%emt 0:02:36]} fxe5+ {[%emt 0:00:22]} 50. fxe5 {[%emt 0:00:05]} Rf7 {[%emt 0:05:12]} 51. Re7 {[%emt 0:00:22]} Nf8 $18 {[%emt 0:00:20]} 52. Rxf7+ {[%emt 0:01:11]} Kxf7 {[%emt 0:00:06]} 53. Bxf8 {[%emt 0:00:21]} Kxf8 {[%emt 0:00:06]} 54. Bd1 {[%emt 0:00:13]} 1-0

[Event "46th GRE-chT Premier 2018"]
[Site "Rio Achaia"]
[Date "2018.07.11"]
[Round "3"]
[White "Koyias, Konstantinos"]
[Black "Georgiou, Kostantinos"]
[Result "1/2-1/2"]
[ECO "A06"]
[WhiteElo "2192"]
[BlackElo "2242"]
[Annotator "NA"]
[PlyCount "66"]
[EventDate "2018.07.10"]
[EventType "team-tourn"]
[EventCountry "GRE"]
[SourceTitle "playchess.com"]
[Source "ChessBase"]
[SourceQuality "1"]
[TimeControl "40/5400+30:1800+30"]

1. Nf3 {[%emt 0:00:00]} d5 {[%emt 0:00:18]} 2. g3 {[%emt 0:00:00]} e6 {[%emt 0:00:07]} 3. Bg2 {[%emt 0:00:07]} Nf6 {[%emt 0:00:06]} 4. d3 {[%emt 0:01:13]} c5 {[%emt 0:04:02]} 5. Nbd2 {[%emt 0:00:34]} Nc6 {[%emt 0:01:10]} 6. O-O {[%emt 0:00:18]} Bd7 {[%emt 0:01:38]} 7. Re1 {[%emt 0:04:40]} d4 {[%emt 0:02:26]} 8. c3 {[%emt 0:10:20]} Be7 {[%emt 0:02:03]} 9. Nc4 {[%emt 0:02:08]} O-O {[%emt 0:05:22]} 10. Bd2 {[%emt 0:18:31]} Nd5 {[%emt 0:03:25]} 11. Nce5 {[%emt 0:11:08]} Bf6 {[%emt 0:02:44]} 12. Nxd7 {[%emt 0:00:15]} Qxd7 {[%emt 0:00:09]} 13. c4 {[%emt 0:01:26]} Nc7 {[%emt 0:01:28]} 14. a3 {[%emt 0:00:24]} a5 {[%emt 0:01:53]} 15. b3 {[%emt 0:01:42]} g6 {[%emt 0:06:03]} 16. Rb1 {[%emt 0:01:05]} Na6 {[%emt 0:00:48]} 17. Qc2 {[%emt 0:01:31]} Bg7 {[%emt 0:04:49]} 18. Rbd1 {[%emt 0:04:12]} Rab8 {[%emt 0:04:47]} 19. Rb1 {[%emt 0:04:24]} Rbd8 {[%emt 0:03:30]} 20. Red1 {[%emt 0:03:48]} b6 {[%emt 0:04:33]} 21. Rf1 {[%emt 0:00:48]} f5 {[%emt 0:04:04]} 22. Ne1 {[%emt 0:02:22]} Rb8 {[%emt 0:04:45]} 23. Qa2 {[%emt 0:04:46]} Rfe8 {[%emt 0:06:37]} 24. Nc2 {[%emt 0:06:21]} Bf8 {[%emt 0:05:48]} 25. b4 {[%emt 0:08:30]} axb4 {[%emt 0:03:04]} 26. Bxc6 {[%emt 0:00:43]} Qxc6 {[%emt 0:00:45]} 27. axb4 {[%emt 0:00:04]} Nc7 {[%emt 0:05:26]} 28. bxc5 {[%emt 0:01:38]} bxc5 {[%emt 0:01:00]} 29. Rxb8 {[%emt 0:00:16]} Rxb8 {[%emt 0:00:07]} 30. Rb1 {[%emt 0:00:28]} Qa6 {[%emt 0:04:28]} 31. Ra1 {[%emt 0:01:36]} Qc6 {[%emt 0:02:07]} 32. Rb1 {[%emt 0:01:07]} Qa6 {[%emt 0:04:01]} 33. Ra1 {[%emt 0:00:16]} Qc6 {[%emt 0:01:47]} 1/2-1/2

[Event "46th GRE-chT Premier 2018"]
[Site "Rio Achaia"]
[Date "2018.07.11"]
[Round "3"]
[White "Pavlidou, Ekaterini"]
[Black "Markantonaki, Haritomeni"]
[Result "1/2-1/2"]
[ECO "E46"]
[WhiteElo "2186"]
[BlackElo "2152"]
[Annotator "NA"]
[PlyCount "68"]
[EventDate "2018.07.10"]
[EventType "team-tourn"]
[EventCountry "GRE"]
[SourceTitle "playchess.com"]
[Source "ChessBase"]
[SourceQuality "1"]
[TimeControl "40/5400+30:1800+30"]

1. d4 {[%emt 0:00:08]} Nf6 {[%emt 0:00:00]} 2. c4 {[%emt 0:00:18]} e6 {[%emt 0:00:00]} 3. Nc3 {[%emt 0:00:44]} Bb4 {[%emt 0:00:20]} 4. e3 {[%emt 0:00:17]} O-O {[%emt 0:00:12]} 5. Nge2 {[%emt 0:00:25]} Re8 {[%emt 0:01:12]} 6. a3 {[%emt 0:00:14]} Bf8 {[%emt 0:00:08]} 7. g3 {[%emt 0:07:42]} d5 {[%emt 0:01:03]} 8. cxd5 {[%emt 0:00:16]} exd5 {[%emt 0:00:35]} 9. Bg2 {[%emt 0:00:53]} c6 {[%emt 0:01:53]} 10. O-O {[%emt 0:00:44]} Bf5 {[%emt 0:02:42]} 11. Nf4 {[%emt 0:07:44]} Nbd7 {[%emt 0:03:05]} 12. h3 h6 {[%emt 0:04:51]} 13. Nd3 {[%emt 0:11:24]} Ne4 {[%emt 0:02:55]} 14. Ne2 {[%emt 0:03:38]} Bh7 {[%emt 0:06:54]} 15. Kh2 {[%emt 0:08:34]} Qc7 {[%emt 0:12:46]} 16. b3 {[%emt 0:11:05]} Rad8 {[%emt 0:06:01]} 17. a4 {[%emt 0:03:26]} Bd6 {[%emt 0:04:49]} 18. Ba3 {[%emt 0:03:44]} Ndf6 {[%emt 0:07:28]} 19. Bxd6 {[%emt 0:03:43]} Nxd6 {[%emt 0:00:38]} 20. Rc1 {[%emt 0:02:43]} Qe7 {[%emt 0:03:08]} 21. Ne5 {[%emt 0:07:48]} Nfe4 {[%emt 0:03:18]} 22. Nc3 {[%emt 0:04:37]} Nxc3 {[%emt 0:03:51]} 23. Rxc3 {[%emt 0:00:13]} Ne4 {[%emt 0:00:22]} 24. Bxe4 {[%emt 0:03:48]} Bxe4 {[%emt 0:00:40]} 25. f3 {[%emt 0:01:42]} Bh7 {[%emt 0:03:03]} 26. Ng4 {[%emt 0:03:15]} Qb4 {[%emt 0:05:48]} 27. Qc1 {[%emt 0:02:06]} f6 {[%emt 0:03:56]} 28. Nf2 {[%emt 0:01:27]} Re6 {[%emt 0:01:56]} 29. Kg2 {[%emt 0:02:02]} Rde8 {[%emt 0:00:10]} 30. h4 {[%emt 0:01:10]} Qe7 {[%emt 0:05:00]} 31. Re1 {[%emt 0:00:25]} Qb4 {[%emt 0:01:42]} 32. h5 {[%emt 0:03:24]} R6e7 {[%emt 0:03:54]} 33. Nh3 {[%emt 0:02:08]} Re6 {[%emt 0:00:31]} 34. Nf2 {[%emt 0:00:09]} R6e7 {[%emt 0:00:09]} 1/2-1/2

[Event "46th GRE-chT Premier 2018"]
[Site "Rio Achaia"]
[Date "2018.07.11"]
[Round "3"]
[White "Ladopoulos, Dimitrios"]
[Black "Kouskoutis, Georgios-Alexandros"]
[Result "1/2-1/2"]
[ECO "B40"]
[WhiteElo "2183"]
[BlackElo "2307"]
[Annotator "NA"]
[PlyCount "104"]
[EventDate "2018.07.10"]
[EventType "team-tourn"]
[EventCountry "GRE"]
[SourceTitle "playchess.com"]
[Source "ChessBase"]
[SourceQuality "1"]
[TimeControl "40/5400+30:1800+30"]

1. e4 {[%emt 0:00:00]} c5 {[%emt 0:00:00]} 2. Nf3 {[%emt 0:00:08]} e6 {[%emt 0:00:00]} 3. g3 {[%emt 0:00:59]} Nc6 {[%emt 0:01:19]} 4. Bg2 {[%emt 0:00:17]} e5 {[%emt 0:02:03] B40: Sicilian: 2...e6, Unusual lines} (4... Nf6 5. d3 d5 6. Nbd2 Be7 7. O-O O-O 8. Re1 b5 9. e5 Nd7 10. Nf1 Bb7 11. h4 Qc7 12. Bf4 Rfc8 13. Ne3 Qd8 14. Ng4 Bf8 15. Bg5 Qe8 16. c3 h6 17. Bf4 a5 18. Qd2 b4 19. c4 Ne7 20. h5 {1-0 (59) Kuzubov,Y (2699)-Grischuk,A (2772) Riadh 2017}) 5. O-O {[%emt 0:01:47]} g6 {[%emt 0:00:21]} 6. c3 {[%emt 0:03:32]} Bg7 {[%emt 0:01:44]} 7. Na3 {[%emt 0:04:20]} Nge7 {[%emt 0:07:29]} 8. Nc4 $146 {[%emt 0:15:07]} ({Predecessor:} 8. d4 cxd4 9. cxd4 exd4 10. Nb5 O-O 11. Bf4 d5 12. e5 {½-½ (26) Sipos,I (2492)-Mihok,O (2510) Slovakia 2016}) 8... d6 {[%emt 0:07:46]} 9. d4 {[%emt 0:05:12]} exd4 {[%emt 0:04:52]} 10. Bf4 {[%emt 0:07:17]} O-O {[%emt 0:00:57]} 11. cxd4 {[%emt 0:02:03]} cxd4 {[%emt 0:13:03]} 12. Nxd6 {[%emt 0:01:30]} Bg4 {[%emt 0:21:50]} 13. Nxb7 {[%emt 0:09:22]} Qb6 {[%emt 0:01:28]} 14. Qb3 {[%emt 0:01:37]} Be6 {[%emt 0:08:47]} 15. Qxb6 {[%emt 0:00:51]} axb6 {[%emt 0:00:03]} 16. a3 {[%emt 0:03:33]} d3 {[%emt 0:10:42]} 17. e5 {[%emt 0:11:06]} Nd5 {[%emt 0:09:10]} 18. Rfd1 {[%emt 0:09:16]} Ra4 {[%emt 0:06:18]} 19. b3 {[%emt 0:18:11]} Rxf4 {[%emt 0:00:51]} 20. gxf4 {[%emt 0:00:05]} Nxf4 {[%emt 0:00:06]} 21. Re1 {[%emt 0:03:44]} Nxg2 {[%emt 0:01:04]} 22. Kxg2 {[%emt 0:00:02]} Bd5 {[%emt 0:00:30]} 23. Kg3 {[%emt 0:00:58]} Rb8 {[%emt 0:00:33]} 24. Nd6 {[%emt 0:00:31]} Bxf3 {[%emt 0:00:29]} 25. Kxf3 {[%emt 0:00:02]} Bxe5 {[%emt 0:00:26]} 26. Rxe5 {[%emt 0:00:55]} Nxe5+ {[%emt 0:00:05]} 27. Ke4 {[%emt 0:00:32]} Ng4 {[%emt 0:00:53]} 28. Kf3 {[%emt 0:00:31]} f5 {[%emt 0:00:35]} 29. h3 {[%emt 0:00:22]} Ne5+ {[%emt 0:00:32]} 30. Kf4 {[%emt 0:00:35]} Nd7 {[%emt 0:00:30]} 31. Rd1 {[%emt 0:00:25]} Nf6 {[%emt 0:00:32]} 32. Rxd3 {[%emt 0:00:24]} Rd8 {[%emt 0:00:21]} 33. Rd4 {[%emt 0:00:44]} Ra8 {[%emt 0:00:28]} 34. a4 {[%emt 0:00:11]} Kf8 {[%emt 0:00:37]} 35. Nc4 {[%emt 0:00:25]} Rb8 {[%emt 0:00:30]} 36. Ne5 {[%emt 0:00:51]} Rb7 {[%emt 0:00:28]} 37. Rd6 {[%emt 0:00:33]} Ke7 {[%emt 0:00:31]} 38. Rc6 {[%emt 0:00:23]} Nd5+ {[%emt 0:00:31]} 39. Kg5 {[%emt 0:00:36]} Nc7 {[%emt 0:00:31]} 40. Nc4 {[%emt 0:00:00]} Nd5 {[%emt 0:00:00]} 41. Rd6 {[%emt 0:04:47]} b5 {[%emt 0:20:03]} 42. Rxd5 {[%emt 0:07:36]} bxc4 {[%emt 0:00:09]} 43. bxc4 {[%emt 0:00:03]} Rb4 {[%emt 0:01:10]} 44. Ra5 {[%emt 0:10:37]} Rxc4 {[%emt 0:00:19]} 45. Ra7+ {[%emt 0:01:13]} Ke6 {[%emt 0:00:08]} 46. Rxh7 {[%emt 0:01:03]} Rxa4 {[%emt 0:00:23]} 47. Rg7 {[%emt 0:02:01]} Ra3 {[%emt 0:08:22]} 48. Rxg6+ {[%emt 0:01:01]} Ke7 $1 {[%emt 0:00:28]} 49. f4 {[%emt 0:02:48]} Rxh3 {[%emt 0:00:09]} 50. Ra6 {[%emt 0:00:10]} Kf7 $14 {[%emt 0:02:11]} 51. Rf6+ {[%emt 0:00:58]} Kg7 {[%emt 0:00:22]} 52. Kxf5 {[%emt 0:00:43]} Ra3 {[%emt 0:01:07]} 1/2-1/2

[Event "46th GRE-chT Premier 2018"]
[Site "Rio Achaia"]
[Date "2018.07.11"]
[Round "3"]
[White "Kazantzidis, Ilias"]
[Black "Tepelenis, Nikolaos"]
[Result "1-0"]
[ECO "D45"]
[WhiteElo "2182"]
[BlackElo "2079"]
[Annotator "NA"]
[PlyCount "39"]
[EventDate "2018.07.10"]
[EventType "team-tourn"]
[EventCountry "GRE"]
[SourceTitle "playchess.com"]
[Source "ChessBase"]
[SourceQuality "1"]
[TimeControl "40/5400+30:1800+30"]

1. d4 {[%emt 0:00:00]} d5 {[%emt 0:00:00]} 2. c4 {[%emt 0:00:00]} c6 {[%emt 0:00:00]} 3. Nc3 {[%emt 0:01:51]} Nf6 {[%emt 0:00:01]} 4. e3 {[%emt 0:00:17]} e6 {[%emt 0:00:14]} 5. Nf3 {[%emt 0:00:27]} Nbd7 {[%emt 0:00:13]} 6. Qc2 {[%emt 0:00:54]} Bd6 {[%emt 0:00:56]} 7. g4 {[%emt 0:00:39]} Nxg4 {[%emt 0:10:41]} 8. Rg1 {[%emt 0:00:10]} Nh6 {[%emt 0:02:10]} 9. e4 {[%emt 0:15:31]} dxe4 {[%emt 0:01:10]} 10. Bxh6 {[%emt 0:01:56]} gxh6 {[%emt 0:01:03]} 11. Qxe4 {[%emt 0:02:17]} Qf6 {[%emt 0:06:49]} 12. Bh3 {[%emt 0:40:38]} Qf4 {[%emt 0:10:48]} 13. Qxf4 {[%emt 0:01:22]} Bxf4 {[%emt 0:00:10]} 14. Rg4 {[%emt 0:06:17]} Bd6 {[%emt 0:10:07]} 15. Rh4 {[%emt 0:00:10]} Nf6 {[%emt 0:12:28]} 16. Rxh6 {[%emt 0:04:29]} Ke7 {[%emt 0:00:21]} 17. Kf1 {[%emt 0:05:12]} Bd7 {[%emt 0:06:31]} 18. Re1 {[%emt 0:02:05]} Rag8 {[%emt 0:02:21]} 19. Ne5 {[%emt 0:04:35]} Bc8 {[%emt 0:05:55]} 20. Rxf6 {[%emt 0:02:09]} 1-0